Cogmind - Beta 13 @@@ ROGUE MODE // 2024.04.01 @ 08:55:45 Player: antarius46 Result: Destroyed by G-34 Mercenary with Small Laser Performance ------------- Evolutions (0) 0 Regions Visited (1) 200 Robots Destroyed (13) 65 Value Destroyed (298) 298 Prototype IDs (0) 0 Alien Tech Used (0) 0 Bonus (0) 0 TOTAL SCORE: 563 Bonus ------- None Cogmind --------- Core Integrity 0/250 Matter 235/300 Energy 250/250 System Corruption 4% Temperature Cool (12) Movement Core (850) Ox16 Location -10/Materials Parts ------- > --- POWER (1) -------- Ion Engine > --- PROPULSION (2) --- (None) > --- UTILITY (2) ------ High-capacity Storage Unit ECM Suite > --- WEAPON (2) ------- Assault Rifle Light Assault Rifle > --- INVENTORY (20) --- Light Ion Engine Light Ion Engine Light Ion Engine Heat Sink Sensor Array Signal Interpreter Core Shielding Light Assault Rifle Light Assault Rifle Mining Laser Peak State ------------ > --- POWER ------------ Ion Engine > --- PROPULSION ------- Aluminum Leg Aluminum Leg > --- UTILITY ---------- High-capacity Storage Unit ECM Suite > --- WEAPON ----------- Assault Rifle Assault Rifle > --- INVENTORY -------- Ion Engine Light Ion Engine Light Ion Engine Light Ion Engine Heat Sink Sensor Array Assault Rifle Light Assault Rifle Light Assault Rifle Mining Laser [Rating: 8] Favorites ----------- Power Ion Engine Engine Ion Engine Propulsion Aluminum Leg Leg Aluminum Leg Utility ECM Suite Device ECM Suite Storage High-capacity Storage Unit Weapon Assault Rifle Ballistic Gun Assault Rifle Build | -11 -10 ------- Run | Yrd Mat Slots Evolved . | . . Power . | . . Propulsion . | . . Utility . | . . Weapon . | . . Parts Attached 16 | 6 10 Power 3 | 1 2 Engine 3 | 1 2 Core . | . . Reactor . | . . Propulsion 2 | 2 . Treads . | . . Leg 2 | 2 . Wheel . | . . Hover . | . . Flight . | . . Utility 4 | 1 3 Device 2 | . 2 Storage 2 | 1 1 Processor . | . . Hackware . | . . Protection . | . . Artifact . | . . Weapon 7 | 2 5 Energy Gun . | . . Energy Cannon . | . . Ballistic Gun 7 | 2 5 Ballistic Cannon . | . . Launcher . | . . Special Weapon . | . . Impact Weapon . | . . Slashing Weapon . | . . Piercing Weapon . | . . Special Melee Weapon . | . . Unidentified Prototypes . | . . Parts Lost 4 | . 4 Power 1 | . 1 Propulsion 2 | . 2 Utility . | . . Weapon 1 | . 1 Highest Loss Streak 2 | . 2 To Critical Strikes . | . . Average Slot Usage (%) 82 | . 82 Engine 13 | . 13 Leg 11 | . 11 Device 13 | . 13 Storage 14 | . 14 Ballistic Gun 27 | . 27 Naked Turns . | . . Heaviest Build 51 | 14 51 Greatest Support 20 | 20 20 Greatest Overweight (x) 16 | . 16 Average Overweight (x) 5 | . 5 Largest Inventory Capacity 20 | 8 20 Average Capacity 18 | 7 19 Most Carried 12 | 5 12 Average Carried 7 | 1 7 Final Capacity 20 | 8 20 Final Carried 10 | 2 10 Class Distribution -------------------- 100% | Mutant Dominant Class ---------------- Mutant | -10/Materials Resources | -11 -10 ----------- Run | Yrd Mat Matter Collected 529 | 185 344 Remotely . | . . Salvage Created 375 | . 375 Parts 27 | . 27 Haulers Intercepted . | . . Recyclers Shooed . | . . Parts Field Recycled . | . . Retrieved Matter . | . . Parts Self-Destructed . | . . Prevented . | . . Kills | -11 -10 ------- Run | Yrd Mat Combat Hostiles Destroyed 13 | . 13 Guns 13 | . 13 Classes Destroyed 2 | . 2 Swarmer 6 | . 6 Grunt 7 | . 7 Best Kill Streak 3 | . 3 Combat Bots Only 3 | . 3 Max Kills in Single Turn 2 | . 2 Gunslinging 1 | . 1 Exploded . | . . Melee . | . . Uniques/NPCs Destroyed . | . . Combat | -11 -10 -------- Run | Yrd Mat Hostile Shots Fired 99 | . 99 Missed 23 | . 23 Damage Taken 855 | . 855 Core 252 | . 252 Absorbed by Shields . | . . Regen/Repaired (Parts) 10 | . 10 Core Remaining (%) 100 | 100 . Volleys Fired 53 | . 53 Largest 2 | . 2 Hottest 40 | . 40 Shots Fired 100 | . 100 Gun 100 | . 100 Cannon . | . . Launcher . | . . Special . | . . Kinetic 100 | . 100 Thermal . | . . Explosive . | . . Electromagnetic . | . . Robot Hit Streak 11 | . 11 Robot Miss Streak 7 | . 7 Penetration Max . | . . Secondary Targets 3 | . 3 Max Gunslinging Chain 1 | . 1 Shots Hit Robots 62 | . 62 Core Hits 22 | . 22 Critical Kills . | . . Critical Parts Destroyed . | . . Critical Strikes . | . . Melee Attacks . | . . Impact . | . . Slashing . | . . Piercing . | . . Sneak Attacks . | . . Combat Hostiles . | . . Follow-up Attacks . | . . Damage Inflicted 714 | . 714 Guns 713 | . 713 Cannons . | . . Explosions . | . . Melee . | . . Ramming 1 | . 1 Kinetic 713 | . 713 Thermal . | . . Explosive . | . . Electromagnetic . | . . Impact . | . . Slashing . | . . Piercing . | . . Highest Corruption 4 | . 4 Average Corruption 2 | . 2 Corruption Purged . | . . Corruption Blocked . | . . Effects 22 | . 22 Message Errors 5 | . 5 Matter Fused 3 | . 3 Heat Flow Errors 2 | . 2 Energy Discharges 7 | . 7 Parts Fused 1 | . 1 Data Loss (minor) 2 | . 2 Alerts 2 | . 2 Overload Shots . | . . Overflow Damage . | . . Projectiles . | . . Explosions . | . . Melee . | . . Knockbacks . | . . Impact . | . . Kinetic . | . . Secondary . | . . Self-Inflicted Damage . | . . Shots . | . . Rammed 1 | . 1 Targets Rammed 1 | . 1 Kicked . | . . Crushed . | . . Highest Temperature 256 | . 256 Average Temperature 90 | . 90 Received Heat Transfer 270 | . 270 Siege Activations . | . . Robots Corrupted . | . . Combat Hostiles . | . . Parts Fried . | . . Impact Corruptions . | . . Robots Melted . | . . Combat Hostiles . | . . Parts Melted . | . . Heat Transferred . | . . Parts Sabotaged . | . . Parts Stolen . | . . Parts Stripped . | . . Power Chain Reactions . | . . Alert | -11 -10 ------- Run | Yrd Mat Peak Influence 178 | . 178 Initial . | . . Average 22 | . 22 Maximum Alert Level . | . . Low Security (%) 100 | 100 100 Level 1 . | . . Level 2 . | . . Level 3 . | . . Level 4 . | . . Level 5 . | . . High Security . | . . Max Security . | . . Squads Dispatched 4 | . 4 Investigation 3 | . 3 Extermination . | . . Reinforcement 1 | . 1 Assault . | . . Garrison . | . . Intercept . | . . Searches Triggered . | . . Construction Impeded . | . . Haulers Reinforced . | . . Active Scanning Responses . | . . Cargo Convoy Interrupts . | . . Stealth | -11 -10 --------- Run | Yrd Mat Distress Signals . | . . Communications Jammed . | . . Distress Signals . | . . Times Spotted 29 | . 29 Peak Tracking Total 4 | . 4 Tactical Retreats 4 | . 4 Traps | -11 -10 ------- Run | Yrd Mat Traps Triggered 5 | . 5 Indirectly . | . . Trap Hack Attempts . | . . Triggered . | . . Disarmed . | . . Reprogrammed . | . . Reused . | . . Traps Extracted . | . . Installed . | . . Triggered . | . . Machines | -11 -10 ---------- Run | Yrd Mat Machines Disabled . | . . Max in Single Turn . | . . Machines Repaired . | . . Machines Dismantled . | . . Machines Sabotaged . | . . Overloaded Fab Kills . | . . Hacking | -11 -10 --------- Run | Yrd Mat Machines Accessed 5 | . 5 Terminals 3 | . 3 Fabricators . | . . Repair Stations 1 | . 1 Recycling Units 1 | . 1 Scanalyzers . | . . Garrison Access . | . . Total Hacks 17 | . 17 Successful 10 | . 10 Failed 7 | . 7 Catastrophic . | . . Database Lockouts . | . . Manual . | . . Terminals 9 | . 9 Fabricators . | . . Repair Stations 5 | . 5 Recycling Units 3 | . 3 Scanalyzers . | . . Garrison Access . | . . Terminal Hacks 5 | . 5 Record 5 | . 5 Fabricator Hacks . | . . Repair Station Hacks 3 | . 3 Scan Component 2 | . 2 Repair 1 | . 1 Recycling Unit Hacks 2 | . 2 Retrieve Matter 1 | . 1 Retrieve Components 1 | . 1 Scanalyzer . | . . Garrison Access Hacks . | . . Unauthorized Hacks . | . . Terminals . | . . Fabricators . | . . Repair Stations . | . . Recycling Units . | . . Scanalyzers . | . . Garrison Access . | . . Data Cores Recovered . | . . Used . | . . Hacking Detections 4 | . 4 Full Trace Events 4 | . 4 Feedback Events . | . . Feedback Blocked . | . . Robot Schematics Acquired . | . . Robots Built . | . . Authchips . | . . Time . | . . Total Robot Build Rating . | . . Part Schematics Acquired . | . . Parts Built . | . . Authchips . | . . Time . | . . Total Part Build Rating . | . . Parts Repaired 1 | . 1 Time 26 | . 26 Parts Recycled . | . . Recycled Matter . | . . Retrieved Matter . | . . Retrieved Components 1 | . 1 Parts Scanalyzed . | . . Part Schematics Acquired . | . . Parts Damaged . | . . Bothacking | -11 -10 ------------ Run | Yrd Mat Used RIF Installer . | . . Robots Hacked . | . . Non-combat . | . . Combat . | . . Robot Hacks Applied . | . . Relay Couplers Released . | . . Fabnet Peak Effective % . | . . Robots Rewired . | . . Allies Hacked . | . . Hacks Repelled . | . . Allies | -11 -10 -------- Run | Yrd Mat Total Allies . | . . Largest Group . | . . Highest-Rated Group . | . . Highest-Rated Ally . | . . Total Orders . | . . Ally Attacks . | . . Total Damage . | . . Kills . | . . Allies Corrupted . | . . Allies Melted . | . . Intel | -11 -10 ------- Run | Yrd Mat Robot Analysis Total . | . . Derelict Logs Recovered . | . . Drone Launches . | . . Drone Recoveries . | . . Exploration | -11 -10 ------------- Run | Yrd Mat Turns Passed 2005 | 51 1954 Spaces Moved 440 | 39 401 Core 124 | 13 111 Treads . | . . Legs 316 | 26 290 Wheels . | . . Hover . | . . Flight . | . . Fastest Speed 50 | 50 120 Average Speed 377 | 96 405 Slowest Speed 850 | 120 850 Overloaded Moves . | . . Propulsion Burnouts . | . . Robots Hopped . | . . Cave-ins Triggered . | . . Exploration Rate (%) 38 | 5 71 Regions Visited 1 Branch Regions . Pre-discovered Areas . | . . Known Exits Taken . | . . Unknown Exits Taken 1 | 1 . Scrap Searched . | . . Spaces Dug . | . . Terrain Destroyed . | . . Melee . | . . Projectile . | . . AOE . | . . Terrain Rammed . | . . Walls Destroyed . | . . Machines Disabled . | . . Actions | -11 -10 --------- Run | Yrd Mat Total 683 | 52 631 Wait 143 | . 143 Move 439 | 38 401 Hop . | . . Pick Up 26 | 8 18 Fast Attach . | . . Attach 11 | 6 5 Detach . | . . Swap 5 | . 5 Drop 5 | . 5 Fire 53 | . 53 Melee . | . . Ram 1 | . 1 Kick . | . . Crush . | . . Escape Stasis . | . . Rewire . | . . Trap . | . . Miscellaneous . | . . Route ------- -11/Scrapyard -10/Materials (discovered 3 exits: [*Mat x2] / [*Sub]) History --------- Turn | Location | Event 3 | -11/Scrapyard | Discovered new exit (range 15) 52 | -11/Scrapyard | Entered Materials 305 | -10/Materials | Discovered new exit (range 4) 312 | -10/Materials | Build established: Mutant 469 | -10/Materials | Repaired Sensor Array 699 | -10/Materials | Core integrity fell below 50% 1024 | -10/Materials | Core integrity fell below 20% 1263 | -10/Materials | Discovered new exit (range 10) 1619 | -10/Materials | Discovered new exit (range 11) 2006 | -10/Materials | Destroyed by G-34 Mercenary with Small Laser Last Messages --------------- exit from [Garrison] corridor networks. To ensure safe passage of response squads entering a potential hostile fire zone, the installation itself is reinforced against explosives and kinetic weaponry that might otherwise inflict excessive collateral damage. Corresponding defensive measures have rendered it somewhat weak against thermal attacks. For emergency situations where an area has been overrun, or a garrison has been infiltrated, the entrance and inner tunnel may be permanently sealed to prevent passage and contain the threat. System corrupted: IFF burst signal emitted. System corrupted: Component data lost. Acquired Core Shielding. Connecting with Terminal... ALERT: Suspicious activity at Terminal M003. Dispatching Investigation squad. G-34 Mercenary destroyed. Map ----- +----------------------------------------------------+ | | | | | | | | | | | | | | | | | | | | | | | | | | | | | | | | | | | | | | | | | ??????????????????##############?????? | | ??????????????????# T #?????? | | ???????######?????# """ #?????? | | ???????[!!!!#?????# ] """ #?????? | | ????????!!!!#?????# =""" #?????? | | ???????? ####### g%! @ #?????? | | #####???# ## ##/###########?????? | | = ##### ^ ^ ##????????????? | | =[[ + ^ T#????????????? | | [ ###### """ ##????????????? | | [ #????# """"" #?????????????? | | ! #????# """"" #?????????????? | | #????#^ """" #?????????????? | | ##+##????# """ #?###########?? | | ?# #?????# #?# #?? | | ?# #?????# ^ #?# #?? | | ## ####### ### #?? | | " " # #?? | | "R" + """ ""????? | | """ # """ ""????? | | ############/######### # """ ""????? | | #???????# #???# # ??? | | #???????# #???# #########???? | | #???????# #???# #???????????? | | #???????# #?###+####????????? | | #???????# #?# #????????? | | #???????# ##?# #????????? | | #???????# ??#""" #????????? | | #???????# ??#""" #????????? | | #???????##<#######?#""" #????????? | +----------------------------------------------------+ Best States ------------- Heat Dissipation 25 Energy Generation 10 Energy Capacity 250 Matter Stores 286 Matter Capacity 300 Sight Range 16 Robot Scan Range 14 Terrain Scan Density 10 ECM Strength 1 Evasion (%) 55 Item Schematics ----------------- None Robot Schematics ------------------ None Fabricated ------------ Nothing Alien Tech Used ----------------- None Achievements -------------- None Challenges ------------ None Game ------ Seed AutogunSmartbombMultirail Manual? 0 Play Time 00:11:57 Cumulative 3.5 hours Start 2024.04.01 @ 08:44:41 End 2024.04.01 @ 08:55:45 Sessions 1 Manual Loads 0 Difficulty Rogue Special Mode None Game No. 6 Rogue 6 Adventurer 0 Explorer 0 Win Type - Total 0 Types 0/0/0/0/0/0/0/0/0 Lore% 3 Gallery% 7 Achievement% 7 Wizard Run 0 Options --------- Layout 1 ASCII 0 Keyboard 0 Movement Mouse Keybinds 0 Fullscreen 1 Font 24/Smallcaps Map View 50x35 Zoom Use 0% Tactical HUD 0 Map Filters NONE Filters NONE Steam 1 RUN: 629fe5e6-b194-4b07-a6e3-70da6357c96c